[Event "87th Spanish Championship 2022"]
[Site "Linares"]
[Date "2022.08.13"]
[Round "3.1"]
[White "Bernabeu Lopez, Carlos Javier"]
[Black "Santos Latasa, Jaime"]
[Result "0-1"]
[ECO "B92"]
[WhiteElo "2421"]
[BlackElo "2675"]
[Annotator "TA"]
[PlyCount "80"]
[EventDate "2022.08.11"]
[EventType "swiss"]
[EventCountry "ESP"]
[SourceTitle "playchess.com"]
[Source "ChessBase"]
[SourceQuality "1"]
[TimeControl "5400+30"]

{[%evp 18,79,30,20,19,10,0,0,0,0,0,0,0,0,0,0,0,0,0,-37,0,-64,-39,-43,-43,-76,-48,-99,-58,-119,-89,-147,-131,-227,-229,-212,-199,-183,-115,-270,-262,-352,-371,-443,-455,-432,-413,-889,-425,-407,-410,-483,-493,-475,-475,-1503,-1457,-29981,-29962,-29993,-29994,-29998,-29999,-29999]} 1. e4 {[%emt 0:01:19]} c5 {[%emt 0:00:09]} 2. Nf3 {[%emt 0:00:06]} d6 {[%emt 0:00:05]} 3. d4 {[%emt 0:00:04]} cxd4 {[%emt 0:00:05]} 4. Nxd4 {[%emt 0:00:04]} Nf6 {[%emt 0:00:08]} 5. Nc3 {[%emt 0:00:03]} a6 {[%emt 0:00:04]} 6. Be2 {[%emt 0:00:54]} e5 {[%emt 0:00:10]} 7. Nb3 {[%emt 0:00:03]} Be7 {[%emt 0:00:05]} 8. Be3 {[%emt 0:00:07]} Be6 {[%emt 0:00:05]} 9. Nd5 {[%emt 0:00:06]} Nbd7 {[%emt 0:00:06]} 10. Qd3 {[%emt 0:00:05]} O-O {[%emt 0:00:11] B92: Sicilian Najdorf: 6 Be2.} 11. c4 {[%emt 0:00:44]} b5 {[%emt 0:01:01]} 12. cxb5 {[%emt 0:02:11]} axb5 {[%emt 0:00:35] The position is equal.} 13. O-O {[%emt 0:01:29]} Bxd5 {[%emt 0:00:08]} 14. exd5 {[%emt 0:00:05]} Nb6 {[%emt 0:00:06]} 15. Bxb6 {[%emt 0:03:34]} Qxb6 {[%emt 0:00:10]} 16. Qxb5 {[%emt 0:03:43]} Qa7 {[%emt 0:00:10]} 17. Qd3 {[%emt 0:05:29]} Rfb8 {[%emt 0:00:16] [#]} 18. g3 $146 {[%emt 0:04:02]} ({Predecessor:} 18. Rfc1 e4 19. Qd2 Bd8 20. Nd4 Ba5 21. Qd1 Rxb2 22. Nc6 Qc7 23. a4 e3 24. fxe3 {½-½ (46) Le,Q (2713)-Grischuk,A (2777) Chess.com INT 2020}) 18... Rb4 {[%emt 0:05:14][%mdl 1024] Black has compensation.} 19. Kg2 {[%emt 0:09:06]} (19. a3 $11 Rb6 20. a4) 19... Rab8 {[%emt 0:00:45]} 20. Rfd1 {[%emt 0:06:08]} g6 {[%emt 0:01:10]} 21. Qe3 {[%emt 0:07:02]} Qa8 {[%emt 0:02:01]} 22. Qd2 {[%emt 0:01:16]} ({White should play} 22. Qd3 $1 $15) 22... Bd8 {[%emt 0:00:34] Black is more active.} 23. h3 {[%emt 0:13:50]} (23. Qd3 $15) 23... Kg7 {[%emt 0:00:50]} 24. Bf3 {[%emt 0:01:17]} (24. Qd3 $142) 24... h5 {[%emt 0:01:16][%cal Bh7h5,Bh5h4][%mdl 32]} 25. Kh2 {[%emt 0:00:43]} (25. h4 $17) 25... h4 $19 {[%emt 0:01:16]} 26. Bg2 {[%emt 0:04:26]} Qa7 {[%emt 0:00:21]} 27. Rf1 {[%emt 0:01:35]} Nd7 {[%emt 0:04:15]} (27... Ne4 $19 28. Bxe4 Rxe4) 28. Qe3 {[%emt 0:06:39] Now White is beyond hope.} (28. g4 $17) 28... hxg3+ {[%emt 0:01:03]} 29. Kxg3 {[%emt 0:01:12]} Bb6 {[%emt 0:01:11][%cal Bd8b6,Bb6f2,Bf2e3,Be3d4,Bd4e5][%mdl 32]} 30. Qd2 {[%emt 0:00:23] [#]} Nf6 $1 {[%emt 0:00:23] ...Rf4 is the strong threat.} 31. Kh2 {[%emt 0:01:29]} Rf4 {[%emt 0:02:48]} 32. Nc1 {[%emt 0:01:15] [#]} (32. Kg1 $142) 32... Rxf2 {[%emt 0:01:03]} (32... Ng4+ $142 $1 {[%mdl 512]} 33. Kh1 Rxf2) 33. Rxf2 {[%emt 0:00:12]} Bxf2 {[%emt 0:00:04]} 34. Nd3 {[%emt 0:00:40]} Be3 {[%emt 0:00:25]} 35. Qe2 {[%emt 0:01:40]} Bd4 {[%emt 0:03:13][%cal Oe5e4] aiming for ...e4!} ({But not} 35... e4 $2 36. Re1 exd3 37. Qxe3 Qxe3 38. Rxe3 $19) 36. Qd2 {[%emt 0:05:59]} (36. Be4 $142) 36... e4 {[%emt 0:01:01]} 37. Nb4 {[%emt 0:01:17] [#]} Ng4+ $1 {[%emt 0:00:40][%mdl 512] Black mates.} 38. hxg4 {[%emt 0:01:44]} (38. Kh1 Nf2+) 38... Be5+ {[%emt 0:00:36]} 39. Kh3 {[%emt 0:00:07]} Rh8+ {[%emt 0:00:07]} 40. Qh6+ {[%emt 0:00:03]} Rxh6# {Weighted Error Value: White=0.79/Black=0.25 (precise)} 0-1

[Event "87th Spanish Championship 2022"]
[Site "Linares"]
[Date "2022.08.13"]
[Round "3.2"]
[White "Iturrizaga Bonelli, Eduardo"]
[Black "Lianes Garcia, Marcos"]
[Result "1-0"]
[ECO "A06"]
[WhiteElo "2619"]
[BlackElo "2411"]
[Annotator "TA"]
[PlyCount "93"]
[EventDate "2022.08.11"]
[EventType "swiss"]
[EventCountry "ESP"]
[SourceTitle "playchess.com"]
[Source "ChessBase"]
[SourceQuality "1"]
[TimeControl "5400+30"]

{[%evp 9,93,12,15,7,13,9,6,2,8,5,7,8,12,0,8,0,17,-4,11,13,16,19,8,14,18,23,9,0,65,63,81,67,88,79,90,83,80,82,70,83,79,86,136,140,157,151,161,162,160,158,217,214,207,151,218,180,177,180,338,334,366,345,463,325,270,267,578,569,550,555,541,544,841,822,1897,1506,3356,2328,29971,29972,29967,29964,29971,29972,29989,29990]} 1. Nf3 {[%emt 0:08:27]} d5 {[%emt 0:00:27]} 2. e3 {[%emt 0:00:22]} Nf6 {[%emt 0:05:03]} 3. c4 {[%emt 0:00:39]} e6 {[%emt 0:00:41]} 4. Nc3 {[%emt 0:00:13]} dxc4 {[%emt 0:10:53]} 5. Bxc4 {[%emt 0:00:23]} a6 {[%emt 0:00:52]} 6. O-O $1 {[%emt 0:09:11] A17: English Opening: 1...Nf6 with ...Bb4.} b5 {[%emt 0:07:30]} 7. Be2 {[%emt 0:00:13]} Bb7 {[%emt 0:00:43]} 8. b3 {[%emt 0:04:12] The position is equal.} Nbd7 {[%emt 0:05:42]} 9. Bb2 {[%emt 0:00:09]} Be7 {[%emt 0:01:37]} 10. Qc2 {[%emt 0:01:56]} O-O {[%emt 0:02:47]} 11. Rac1 {[%emt 0:18:22]} c5 {[%emt 0:16:21]} 12. a4 {[%emt 0:00:22]} b4 {[%emt 0:05:00]} 13. Nb1 {[%emt 0:00:22] [#]} Qc7 $146 {[%emt 0:03:33]} ({Predecessor:} 13... Rc8 14. d3 Nd5 15. Rfd1 Bf6 16. Bf1 Qe7 17. e4 Bxb2 18. Qxb2 Nf4 {0-1 (67) Klings,P (2101)-Spitzl,V (2277) Germany 2018}) 14. d3 {[%emt 0:00:47]} Rac8 {[%emt 0:08:07]} 15. Nbd2 {[%emt 0:00:10]} Rfd8 {[%emt 0:01:20]} 16. Rfd1 {[%emt 0:00:06]} Nd5 {[%emt 0:01:56]} 17. e4 {[%emt 0:04:22]} Nf4 {[%emt 0:02:37]} 18. Bf1 {[%emt 0:00:06]} e5 {[%emt 0:04:21]} (18... Bf6 $11) 19. g3 $14 {[%emt 0:00:52]} Ne6 {[%emt 0:00:13]} 20. Bh3 {[%emt 0:00:58]} Bf6 {[%emt 0:05:36]} 21. Bxe6 {[%emt 0:01:04]} fxe6 {[%emt 0:00:01]} 22. Nc4 {[%emt 0:00:09]} a5 {[%emt 0:01:12]} 23. Qb1 {[%emt 0:06:46]} Ba6 {[%emt 0:00:13]} 24. Qa1 {[%emt 0:00:05] White is more active.} Bxc4 {[%emt 0:00:08]} 25. dxc4 {[%emt 0:02:59]} Kf7 {[%emt 0:01:41]} ({Better is} 25... Qb7) 26. Rd3 $16 {[%emt 0:03:40]} Ke7 {[%emt 0:01:07]} 27. Rcd1 {[%emt 0:00:11]} Qc6 {[%emt 0:01:06]} 28. Qb1 {[%emt 0:07:51]} ({Much less strong is} 28. Nxe5 $6 Nxe5 29. Bxe5 Qxe4 30. Bxf6+ gxf6 31. Rxd8 Rxd8 $16) 28... Qc7 {[%emt 0:00:29]} 29. g4 {[%emt 0:01:23] g5 is the strong threat.} g6 {[%emt 0:01:54]} (29... g5 $16 {was called for.} 30. h4 Nf8 31. hxg5 Bg7) 30. Qc1 $18 {[%emt 0:02:10]} ({Resist} 30. g5 Bg7) 30... Ke8 {[%emt 0:06:12]} 31. Kg2 {[%emt 0:04:39]} Nf8 {[%emt 0:00:38]} 32. Rxd8+ {[%emt 0:10:24]} Rxd8 {[%emt 0:00:05]} 33. Rxd8+ {[%emt 0:00:05]} Kxd8 $2 {[%emt 0:00:08] [#]} (33... Qxd8 34. Bxe5 Bxe5) 34. Bxe5 $1 {[%emt 0:02:19][%mdl 512]} Bxe5 {[%emt 0:01:49]} 35. Qg5+ {[%emt 0:00:05]} Qe7 {[%emt 0:01:28]} 36. Qxe5 {[%emt 0:01:39][%mdl 4096] Endgame White threatens Qb8+ and mate. KQN-KQN} Nd7 {[%emt 0:00:10] Prevents Qb8+.} 37. Qh8+ {[%emt 0:00:04]} Qf8 $2 {[%emt 0:00:54]} (37... Kc7 {is more resistant.} 38. Qa8 Kb6) 38. Qxh7 {[%emt 0:05:29]} Qf4 {[%emt 0:00:06]} 39. Qh4+ {[%emt 0:00:04]} Kc8 {[%emt 0:01:18]} 40. g5 {[%emt 0:00:57]} Qc1 {[%emt 0:00:32]} 41. Qg4 {[%emt 0:03:08]} Qc2 {[%emt 0:00:42]} 42. Qxe6 {[%emt 0:00:15]} Qxb3 {[%emt 0:00:10]} 43. e5 {[%emt 0:02:28][%cal Be4e5,Be5e6,Be6e7][%mdl 32] Intending Qe8+ and mate.} Qxa4 {[%emt 0:01:44]} 44. Qe8+ {[%emt 0:00:39] White mates.} Kc7 {[%emt 0:00:31]} 45. e6 {[%emt 0:00:04]} b3 {[%emt 0:01:03]} 46. e7 {[%emt 0:00:36]} b2 {[%emt 0:01:19]} 47. Qd8+ {[%emt 0:00:05] Weighted Error Value: White=0.07 (flawless) /Black=0.36} 1-0

[Event "87th Spanish Championship 2022"]
[Site "Linares"]
[Date "2022.08.13"]
[Round "3.3"]
[White "Alonso Garcia, Aaron"]
[Black "Salgado Lopez, Ivan"]
[Result "1/2-1/2"]
[ECO "B42"]
[WhiteElo "2374"]
[BlackElo "2604"]
[Annotator "TA"]
[PlyCount "94"]
[EventDate "2022.08.11"]
[EventType "swiss"]
[EventCountry "ESP"]
[SourceTitle "playchess.com"]
[Source "ChessBase"]
[SourceQuality "1"]
[TimeControl "5400+30"]

{[%evp 14,94,35,22,19,18,27,0,69,63,139,115,89,102,125,113,104,143,131,138,143,96,95,0,0,0,29,30,40,45,52,49,46,13,32,0,15,13,0,-8,0,-11,0,-52,-47,-48,-39,-88,-97,-129,-69,-191,-187,-190,-129,-127,-123,-139,-124,-128,-125,-111,-121,-299,-320,-244,-33,-179,-33,-33,-24,-24,-25,-32,-32,-40,-40,-55,0,-68,0,-68,0]} 1. e4 {[%emt 0:06:47]} c5 {[%emt 0:00:08]} 2. Nf3 {[%emt 0:00:07]} e6 {[%emt 0:00:06]} 3. d4 {[%emt 0:00:05]} cxd4 {[%emt 0:00:06]} 4. Nxd4 {[%emt 0:00:02]} a6 {[%emt 0:00:09]} 5. Bd3 {[%emt 0:00:04]} Bc5 {[%emt 0:00:10]} 6. Nb3 {[%emt 0:00:02]} Ba7 {[%emt 0:00:10]} 7. Qg4 {[%emt 0:00:01]} Nf6 {[%emt 0:01:24]} 8. Qg3 {[%emt 0:00:01]} d6 {[%emt 0:00:57] B42: Sicilian: Kan Variation: 5 Bd3.} 9. Nc3 {[%emt 0:00:02]} (9. Qxg7 Rg8 10. Qh6 Bxf2+ $1 11. Kd1 Rxg2 $17) 9... Nc6 {[%emt 0:01:29]} 10. Bg5 {[%emt 0:00:02]} (10. Qxg7 Rg8 11. Qh6 Bxf2+ $1 12. Kd1 Rg6 $17) 10... Ne5 {[%emt 0:12:26]} (10... h6 $11 11. Bd2 Nh5) 11. f4 $14 {[%emt 0:15:36] [#]} Neg4 $146 {[%emt 0:17:34]} (11... Nxd3+ $14 12. Qxd3 Qb6) ({Predecessor:} 11... Nxd3+ 12. Qxd3 h6 13. Bxf6 Qxf6 14. g3 O-O 15. O-O-O Bb8 16. Rdf1 Bd7 17. g4 Bc6 {1-0 (39) Lampert,J (2299)-Martin Fernandez,R (2131) Bad Wiessee 2012}) 12. Bxf6 {[%emt 0:05:26]} Nxf6 {[%emt 0:00:13]} 13. e5 {[%emt 0:12:58]} (13. Qxg7 Rg8 14. Qh6 Rxg2 $11) 13... dxe5 {[%emt 0:06:25]} 14. fxe5 {[%emt 0:00:26]} Nh5 {[%emt 0:00:22]} 15. Qg4 {[%emt 0:00:06]} g6 {[%emt 0:00:35] [#]} 16. O-O-O $1 {[%emt 0:11:28][%cal Od3b5]} Qc7 {[%emt 0:00:57]} 17. Rhe1 {[%emt 0:07:51]} (17. Kb1 $142) 17... O-O {[%emt 0:02:42]} 18. Qc4 {[%emt 0:00:53] 0x0.002360d128eadp-1022s more active pieces.} (18. Kb1 $16) 18... Qxc4 $11 {[%emt 0:08:47]} 19. Bxc4 {[%emt 0:00:02]} Bb8 {[%emt 0:00:14]} 20. g3 {[%emt 0:04:03]} Bc7 {[%emt 0:01:50]} 21. Bf1 {[%emt 0:04:14]} Rb8 {[%emt 0:04:18]} 22. Nc5 {[%emt 0:00:19]} Ng7 {[%emt 0:06:02]} 23. b4 {[%emt 0:04:57]} h5 {[%emt 0:03:23]} 24. Kb2 {[%emt 0:00:21]} Nf5 {[%emt 0:01:00]} 25. a3 {[%emt 0:02:05]} Re8 {[%emt 0:02:26]} 26. Nb1 {[%emt 0:05:43]} Kf8 {[%emt 0:00:57]} 27. Nd2 {[%emt 0:00:14]} Rd8 {[%emt 0:01:00]} (27... Ke7 {is more complex.} 28. Ndb3 Nh6 29. Nd4 Ng4) 28. Nc4 {[%emt 0:02:44]} (28. Nf3 $11) 28... Rxd1 $15 {[%emt 0:03:02]} 29. Rxd1 {[%emt 0:00:01]} Ke7 $1 {[%emt 0:00:14]} 30. Ne4 {[%emt 0:06:25]} (30. Re1 $15) 30... Bd7 $17 {[%emt 0:01:17]} 31. Bh3 {[%emt 0:01:55]} Bc6 {[%emt 0:01:56]} ({Better is} 31... Bb5 $17 32. Ncd6 Bc6 33. Bxf5 gxf5) 32. Ned6 {[%emt 0:02:36]} (32. Nc5 $15) 32... Rd8 $19 {[%emt 0:03:09][%cal Rc7d6]} 33. Bxf5 {[%emt 0:00:54]} gxf5 {[%emt 0:04:29]} (33... exf5 $19 34. Na5 f6) 34. Na5 $17 {[%emt 0:00:08]} f6 {[%emt 0:03:33]} 35. Rd3 {[%emt 0:00:22]} Bxd6 {[%emt 0:03:26]} (35... fxe5 36. Ndxb7 Bxb7 37. Rxd8 Bxd8 38. Nxb7) 36. Nxc6+ {[%emt 0:00:39]} bxc6 {[%emt 0:00:08]} 37. exd6+ {[%emt 0:00:02]} Rxd6 {[%emt 0:00:07]} 38. Rxd6 {[%emt 0:00:11]} (38. Rf3 $17) 38... Kxd6 {[%emt 0:00:29][%mdl 4096] Endgame KP-KP} 39. c4 {[%emt 0:00:01] [#]} a5 $2 {[%emt 0:04:54]} (39... Ke5 $1 $19 {[%cal Re5d4] Threatens to win with ...Kd4.} 40. Kc3 f4 41. gxf4+ Kxf4) 40. Kc3 {[%emt 0:02:45]} (40. bxa5 $2 c5 41. Kb3 Kc6 $19) ({White must play} 40. Kb3 $1 $15) 40... e5 {[%emt 0:00:09]} ({Black should play} 40... axb4+ $19 41. axb4 Ke5) 41. Kd2 $15 {[%emt 0:05:04]} (41. bxa5 $2 c5 42. Kd3 Kc6 $19) 41... e4 {[%emt 0:01:30]} 42. Ke2 {[%emt 0:00:34]} (42. bxa5 c5 43. Kd1 Kc7 $19) 42... Ke5 {[%emt 0:01:20] Hoping for ...axb4.} 43. Ke3 $1 {[%emt 0:00:04]} (43. bxa5 $2 Kd6 44. a6 Kc7 $19) 43... Ke6 {[%emt 0:00:20]} 44. Ke2 {[%emt 0:00:48]} (44. bxa5 $2 Kd6 45. a6 Kc7 $19) 44... Kd6 {[%emt 0:00:16]} 45. Kd2 {[%emt 0:00:16]} (45. bxa5 Kc7 46. Kd2 Kb7 $19) 45... Ke6 {[%emt 0:00:58]} 46. Ke2 $1 {[%emt 0:00:08]} (46. bxa5 Kd6 47. a6 Kc7 $19) 46... Ke5 {[%emt 0:00:31] White must now prevent ...axb4.} 47. Ke3 $1 {[%emt 0:00:16]} ({Not} 47. bxa5 $2 Kd6 48. a6 Kc7 $19) 47... Kd6 {[%emt 0:01:39] White happily takes the draw.  Weighted Error Value: White=0.21 (precise) /Black=0.30} (47... axb4 $15 48. axb4 Kd6) 1/2-1/2

[Event "87th Spanish Championship 2022"]
[Site "Linares"]
[Date "2022.08.13"]
[Round "3.4"]
[White "Yuffa, Daniil"]
[Black "Tejedor Fuente, Enrique"]
[Result "1-0"]
[ECO "D20"]
[WhiteElo "2603"]
[BlackElo "2419"]
[Annotator "TA"]
[PlyCount "89"]
[EventDate "2022.08.11"]
[EventType "swiss"]
[EventCountry "ESP"]
[SourceTitle "playchess.com"]
[Source "ChessBase"]
[SourceQuality "1"]
[TimeControl "5400+30"]

{[%evp 14,89,34,38,28,37,32,24,45,44,86,75,50,0,34,16,84,78,137,108,156,135,156,117,385,385,415,405,432,409,453,440,497,466,621,613,607,585,606,598,745,721,1077,1065,1431,1407,1743,1688,1899,1877,1915,1882,1976,954,952,947,922,906,886,835,810,867,872,870,863,866,858,843,29992,29988,29993,29994,29994,29995,29995,29996,29996,29997]} 1. d4 {[%emt 0:05:49]} d5 {[%emt 0:00:01]} 2. c4 {[%emt 0:00:09]} dxc4 {[%emt 0:00:02]} 3. e4 {[%emt 0:00:07]} e5 {[%emt 0:00:19]} 4. Nf3 {[%emt 0:00:07]} exd4 {[%emt 0:00:20]} 5. Bxc4 {[%emt 0:00:23]} Nc6 {[%emt 0:04:21]} 6. O-O {[%emt 0:00:15]} Be6 {[%emt 0:01:11]} 7. Bxe6 {[%emt 0:00:15]} fxe6 {[%emt 0:00:04]} 8. Qb3 {[%emt 0:00:04][%csl LRb7,LRe6]} Qd7 {[%emt 0:00:40] D20: Queen's Gambit Accepted: 3 e3 and 3 e4.} 9. Qxb7 {[%emt 0:00:14]} Rb8 {[%emt 0:00:01]} 10. Qa6 {[%emt 0:00:10]} Nge7 {[%emt 0:02:37] White has an edge.} 11. Ne1 $5 {[%emt 0:08:47][%mdl 4] [#] An interesting side line.} e5 $146 {[%emt 0:17:01]} ({Predecessor:} 11... Ng6 12. f4 Be7 13. g3 O-O 14. Nd2 Rfd8 15. Rf3 Nh8 16. a3 Nf7 17. b4 Rb6 {½-½ (33) Stein,K (2528)-Kluegel,J (2517) GER email 2019}) 12. Nd3 {[%emt 0:04:33]} Ng6 {[%emt 0:00:25]} 13. Nd2 {[%emt 0:03:53]} ({White should try} 13. Bd2 $14) 13... Bd6 {[%emt 0:10:43]} (13... Rb6 $5 {[%cal Rb6a6]} 14. Qa4 Nb4 15. Qxd7+ Kxd7 16. Nxb4 Bxb4 $11) 14. Nc4 {[%emt 0:04:17]} (14. a3 {feels hotter.} Nf4 15. b4 O-O 16. f3) 14... O-O {[%emt 0:00:27]} (14... Nb4 $1 $11 {remains equal.} 15. Nxb4 Bxb4) 15. Bd2 $16 {[%emt 0:02:21][%cal Bc1d2,Bd2e1,Be1g3][%mdl 32]} Rbe8 {[%emt 0:17:04]} ({Black should play} 15... Nd8) 16. Qa4 {[%emt 0:08:20]} Re6 {[%emt 0:17:22]} (16... Nb8 $142 17. Qxa7 Qb5 18. Nxd6 cxd6) 17. f3 {[%emt 0:01:08] White is more active.} Nh4 {[%emt 0:05:54]} 18. Be1 {[%emt 0:04:20]} Nxg2 {[%emt 0:05:32][%mdl 8192] This move loses the game for Black.} 19. Kxg2 $18 {[%emt 0:00:09][%cal Bg1g2,Bg2f2,Bf2e2][%mdl 32]} Rh6 {[%emt 0:00:27] [#] ( -> ...Qh3+)} 20. Bg3 {[%emt 0:07:27]} ({Don't take} 20. h4 Kh8 21. Nxd6 cxd6 $18) 20... Qh3+ {[%emt 0:01:20]} 21. Kf2 {[%emt 0:02:48]} ({Not} 21. Kg1 Rg6 22. Rf2 (22. Qxc6 Rxg3+ 23. hxg3 Qxg3+ 24. Kh1 Qh3+ 25. Kg1 Qg3+ 26. Kh1 Qh3+ 27. Kg1 Qg3+ $11) 22... h5 $18) 21... Rhf6 {[%emt 0:00:54]} 22. Ke2 {[%emt 0:02:18]} Nd8 {[%emt 0:06:42]} (22... Qg2+ $2 23. Rf2 Qh3 24. Qxc6) 23. Rf2 {[%emt 0:06:31]} h5 {[%emt 0:00:53]} 24. Raf1 {[%emt 0:01:10][%cal Ba1f1,Bf1g1,Bg1g3][%mdl 32]} Nf7 {[%emt 0:01:00]} 25. Bxe5 {[%emt 0:01:51]} Bxe5 {[%emt 0:00:17]} 26. Ncxe5 {[%emt 0:00:23]} Ng5 {[%emt 0:00:21]} 27. Qd7 {[%emt 0:03:41]} Ne6 {[%emt 0:02:52]} 28. Rg1 {[%emt 0:02:40][%cal Og1g7] Black must now prevent Rxg7+!} g5 {[%emt 0:00:39]} 29. Rg3 {[%emt 0:03:30]} Qh4 {[%emt 0:00:01]} 30. Rfg2 {[%emt 0:03:32]} Kh8 {[%emt 0:00:09]} 31. Qe7 {[%emt 0:01:26]} c5 {[%emt 0:01:30]} 32. b3 {[%emt 0:00:20]} a5 {[%emt 0:00:01]} 33. Rxg5 {[%emt 0:01:01]} Nxg5 {[%emt 0:00:27] [#]} 34. Qxf8+ $3 {[%emt 0:00:13][%mdl 576] Deflection, Decoy} Rxf8 {[%emt 0:00:01]} 35. Ng6+ {[%emt 0:00:04] Pair of Knights!} Kh7 {[%emt 0:00:16]} 36. Nxh4 {[%emt 0:00:06]} Ne6 {[%emt 0:00:13]} 37. Nf5 {[%emt 0:00:29]} a4 {[%emt 0:00:05]} 38. Kd1 {[%emt 0:04:06]} axb3 {[%emt 0:01:30]} 39. axb3 {[%emt 0:00:05]} Rb8 {[%emt 0:00:49]} 40. Ne5 {[%emt 0:01:42]} Rxb3 {[%emt 0:00:34]} 41. Nd7 {[%emt 0:01:47] White mates.} Kh8 {[%emt 0:00:36]} 42. Nf6 {[%emt 0:00:29][%csl Gf6][%cal Rg2g8]} Rb1+ {[%emt 0:00:17]} 43. Kc2 {[%emt 0:00:07][%csl Gf6][%cal Rg2g8]} Rb8 {[%emt 0:00:06]} 44. Rg6 {[%emt 0:01:03][%cal Rg6h6]} d3+ {[%emt 0:00:44]} 45. Kc3 {[%emt 0:00:13] Weighted Error Value: White=0.11 (very precise) /Black=0.58} 1-0

[Event "87th Spanish Championship 2022"]
[Site "Linares"]
[Date "2022.08.13"]
[Round "3.5"]
[White "Macias Pino, Diego"]
[Black "Perez Candelario, Manuel"]
[Result "1/2-1/2"]
[ECO "C47"]
[WhiteElo "2355"]
[BlackElo "2578"]
[Annotator "TA"]
[PlyCount "73"]
[EventDate "2022.08.11"]
[EventType "swiss"]
[EventCountry "ESP"]
[SourceTitle "playchess.com"]
[Source "ChessBase"]
[SourceQuality "1"]
[TimeControl "5400+30"]

{[%evp 17,73,0,0,0,0,0,6,0,16,18,39,8,33,33,33,32,32,11,27,0,0,0,0,-6,-3,-45,-48,-27,-14,-5,-4,-9,-14,-12,0,0,0,0,0,0,0,0,0,0,0,0,0,0,0,-16,0,-4,0,-1,0,0,0,0]} 1. e4 {[%emt 0:00:04]} e5 {[%emt 0:02:00]} 2. Nf3 {[%emt 0:00:05]} Nc6 {[%emt 0:00:11]} 3. Nc3 {[%emt 0:00:04]} Nf6 {[%emt 0:01:39]} 4. d4 {[%emt 0:00:06]} exd4 {[%emt 0:00:07]} 5. Nxd4 {[%emt 0:00:06]} Bb4 {[%emt 0:01:03]} 6. Nxc6 {[%emt 0:00:05]} bxc6 {[%emt 0:00:04]} 7. Bd3 {[%emt 0:00:04]} d5 {[%emt 0:01:28]} 8. exd5 {[%emt 0:00:06]} O-O {[%emt 0:00:26] The modern move.} 9. O-O {[%emt 0:00:02]} cxd5 {[%emt 0:00:04]} 10. h3 {[%emt 0:00:11] C47: Scotch Four Knights and Four Knights with 4 g3.} c6 {[%emt 0:03:51]} 11. Qf3 {[%emt 0:00:26]} Bd6 {[%emt 0:01:28]} 12. Re1 {[%emt 0:00:07]} Rb8 {[%emt 0:03:06]} 13. b3 {[%emt 0:01:09]} a5 {[%emt 0:07:41]} 14. Bf4 {[%emt 0:08:16] [#]} Bxf4 $146 {[%emt 0:09:29]} ({Predecessor:} 14... Be6 15. Na4 Qc7 16. Bg5 Nd7 17. Qh5 g6 18. Qe2 Bh2+ 19. Kh1 Bf4 20. Bxf4 Qxf4 {½-½ (39) Van Foreest,J (2644)-So,W (2765) Wijk aan Zee 2020}) 15. Qxf4 {[%emt 0:00:09]} Rb4 {[%emt 0:00:12]} 16. Qf3 {[%emt 0:04:18]} Qd6 {[%emt 0:02:56]} 17. Rad1 {[%emt 0:02:30]} Bd7 {[%emt 0:04:46]} 18. Ne2 {[%emt 0:03:04]} Re8 {[%emt 0:04:45]} 19. c4 {[%emt 0:01:22]} a4 {[%emt 0:03:55]} 20. cxd5 {[%emt 0:04:18]} cxd5 {[%emt 0:00:10]} 21. Rd2 {[%emt 0:01:22]} axb3 {[%emt 0:02:09]} 22. axb3 {[%emt 0:00:12]} Qb6 {[%emt 0:13:03]} 23. Bc2 {[%emt 0:01:45] The position is equal.} Bb5 {[%emt 0:02:03]} 24. Red1 {[%emt 0:04:58]} Bxe2 {[%emt 0:00:23]} 25. Rxe2 {[%emt 0:00:02]} Rxe2 {[%emt 0:01:05]} 26. Qxe2 {[%emt 0:00:02][%cal Od1d5]} Qc5 {[%emt 0:02:25]} 27. Qd2 {[%emt 0:03:14]} g6 {[%emt 0:01:43]} 28. Rc1 {[%emt 0:02:43][%cal Oc2g6]} Qd6 {[%emt 0:00:35]} 29. Ra1 {[%emt 0:05:01]} Kg7 {[%emt 0:01:47]} 30. Ra4 {[%emt 0:01:46]} Rb8 {[%emt 0:00:20]} 31. Rd4 {[%emt 0:01:02]} Ra8 {[%emt 0:02:12]} 32. Ra4 {[%emt 0:03:35]} Rc8 {[%emt 0:01:21]} 33. Rd4 {[%emt 0:00:54]} Qe5 {[%emt 0:03:56][%cal Oc8c2] [#] ...Rxc2! is the strong threat.} 34. Bd1 {[%emt 0:03:17]} Ra8 {[%emt 0:04:06]} 35. g3 {[%emt 0:02:15]} Ra1 {[%emt 0:02:00] Strongly threatening ...Ne4.} 36. Kg2 $1 {[%emt 0:01:37]} Ne4 {[%emt 0:04:16]} 37. Rxd5 {[%emt 0:00:41] Weighted Error Value: White=0.06 (flawless) /Black=0.05 (flawless)} 1/2-1/2